Cogmind - Beta 16.1 @@@ ROGUE MODE // 2026.03.20 @ 14:20:38 Player: beans Result: Destroyed by 04-BMT(R) with Subdweller Laser Performance ------------- Evolutions (0) 0 Regions Visited (3) 600 Robots Destroyed (5) 25 Value Destroyed (110) 110 Prototype IDs (1) 20 Alien Tech Used (0) 0 Bonus (0) 0 TOTAL SCORE: 755 Bonus ------- None Cogmind --------- Core Integrity 0/250 Matter 73/300 Energy 99/100 System Corruption 0% Temperature Cool (6) Movement Core (50) Location -10/Subcaves Parts ------- > --- POWER (1) -------- (None) > --- PROPULSION (2) --- (None) > --- UTILITY (2) ------ (None) > --- WEAPON (2) ------- (None) > --- INVENTORY (5) ---- Signal Interpreter Weapon Shielding Sensor Drone Bay (18/20) Peak State ------------ > --- POWER ------------ (None) > --- PROPULSION ------- (None) > --- UTILITY ---------- Sensor Drone Bay > --- WEAPON ----------- Light Cannon > --- INVENTORY -------- Signal Interpreter Weapon Shielding Grenade Launcher [Rating: 9] Favorites ----------- Power Ion Engine Engine Ion Engine Propulsion Aluminum Leg Leg Aluminum Leg Utility Sensor Drone Bay Device Sensor Drone Bay Weapon Light Cannon Ballistic Cannon Light Cannon Launcher Grenade Launcher Build | -11 -10 -10 -10 ------- Run | Yrd Mat Min Sub Slots Evolved . | . . . . Power . | . . . . Propulsion . | . . . . Utility . | . . . . Weapon . | . . . . Parts Attached 6 | 3 . 3 . Power 1 | 1 . . . Engine 1 | 1 . . . Core . | . . . . Reactor . | . . . . Propulsion 2 | 2 . . . Treads . | . . . . Leg 2 | 2 . . . Wheel . | . . . . Hover . | . . . . Flight . | . . . . Utility 1 | . . 1 . Device 1 | . . 1 . Storage . | . . . . Processor . | . . . . Hackware . | . . . . Protection . | . . . . Artifact . | . . . . Weapon 2 | . . 2 . Energy Gun . | . . . . Energy Cannon . | . . . . Ballistic Gun . | . . . . Ballistic Cannon 1 | . . 1 . Launcher 1 | . . 1 . Special Weapon . | . . . . Impact Weapon . | . . . . Slashing Weapon . | . . . . Piercing Weapon . | . . . . Special Melee Weapon . | . . . . Unidentified Prototypes 1 | . . 1 . Parts Lost 2 | . . . 2 Power . | . . . . Propulsion . | . . . . Utility . | . . . . Weapon 2 | . . . 2 Highest Loss Streak 1 | . . . 1 To Critical Strikes . | . . . . Average Backups 2 | . . 3 3 Power . | . . . . Propulsion . | . . . . Utility 1 | . . 1 2 Weapon . | . . 1 . Tool/Special . | . . . . Unused Backups 2 | . . . 2 Power . | . . . . Propulsion . | . . . . Utility 2 | . . . 2 Weapon . | . . . . Tool/Special . | . . . . Average Slot Usage (%) 11 | . 2 6 19 Device 4 | . . . 9 Ballistic Cannon 5 | . . 3 8 Launcher 1 | . . 2 1 Peak Build Rating 9 | 3 2 9 9 Average Rating 3 | 2 . . 6 On Entrance 1 | . 3 . 2 Avg Prop Armor Cover (%) . | . . . . Naked Turns 367 | . 109 183 75 Heaviest Build 17 | 5 . 3 17 Greatest Support 20 | 20 3 3 3 Greatest Overweight (x) 5 | . . . 5 Average Overweight (x) . | . . . . Largest Inventory Capacity 5 | 5 5 5 5 Average Capacity 5 | 5 5 5 5 Most Carried 4 | 3 2 4 4 Average Carried 2 | . . 3 3 Final Capacity 5 | 5 5 5 5 Final Carried 4 | . 2 4 3 Class Distribution -------------------- 100% | Mutant Dominant Class ---------------- Mutant | -10/Materials Mutant | -10/Mines Mutant | -10/Subcaves Resources | -11 -10 -10 -10 ----------- Run | Yrd Mat Min Sub Matter Collected 307 | 165 . 59 83 Remotely . | . . . . Salvage Created 103 | . . 17 86 Parts 11 | . . 3 8 Haulers Intercepted . | . . . . Recyclers Shooed . | . . . . Parts Field Recycled . | . . . . Retrieved Matter . | . . . . Parts Self-Destructed 5 | . . . 5 Prevented . | . . . . Parts Restored . | . . . . Kills | -11 -10 -10 -10 ------- Run | Yrd Mat Min Sub Combat Hostiles Destroyed 5 | . . 3 2 AOE 5 | . . 3 2 Classes Destroyed 2 | . . 1 1 Swarmer 3 | . . 3 . Subdweller 2 | . . . 2 Best Kill Streak 3 | . . 3 2 Combat Bots Only 3 | . . 3 2 Max Kills in Single Turn 2 | . . 2 1 Gunslinging . | . . . . Exploded 2 | . . 2 1 Melee . | . . . . Uniques/NPCs Destroyed . | . . . . Combat | -11 -10 -10 -10 -------- Run | Yrd Mat Min Sub Hostile Shots Fired 28 | . . 4 24 Missed 10 | . . 2 8 Hits 18 | . . 2 16 Projectile 18 | . . 2 16 Critical Strikes 2 | . . . 2 Damage Taken 428 | . . 69 359 Core 251 | . . 31 220 Absorbed by Shields . | . . . . Core Remaining (%) 100 | 100 . . . Volleys Fired 26 | . . 8 18 Largest 1 | . . 1 1 Hottest 30 | . . 30 30 Shots Fired 26 | . . 8 18 Gun . | . . . . Cannon 6 | . . . 6 Launcher 20 | . . 8 12 Special . | . . . . Kinetic 6 | . . . 6 Thermal . | . . . . Explosive 20 | . . 8 12 Electromagnetic . | . . . . Robot Hit Streak 10 | . . . 10 Robot Miss Streak 1 | . . . 1 Penetration Max . | . . . . Secondary Targets . | . . . . Shots Hit Robots 14 | . . . 14 Core Hits 19 | . . 3 16 Critical Kills . | . . . . Critical Parts Destroyed . | . . . . Critical Strikes . | . . . . Melee Attacks . | . . . . Impact . | . . . . Slashing . | . . . . Piercing . | . . . . Sneak Attacks . | . . . . Combat Hostiles . | . . . . Follow-up Attacks . | . . . . Damage Inflicted 1395 | . . 183 1212 Guns . | . . . . Cannons 71 | . . . 71 Explosions 1324 | . . 183 1141 Melee . | . . . . Ramming . | . . . . Kinetic 71 | . . . 71 Thermal . | . . . . Explosive 1324 | . . 183 1141 Electromagnetic . | . . . . Impact . | . . . . Slashing . | . . . . Piercing . | . . . . Highest Corruption . | . . . . Average Corruption . | . . . . Corruption Purged . | . . . . Corruption Blocked . | . . . . Overload Shots . | . . . . Overflow Damage . | . . . . Projectiles . | . . . . Explosions . | . . . . Melee . | . . . . Knockbacks . | . . . . Impact . | . . . . Kinetic . | . . . . Secondary . | . . . . Self-Inflicted Damage 55 | . . 55 . Shots 4 | . . 4 . Rammed . | . . . . Targets Rammed . | . . . . Kicked . | . . . . Crushed . | . . . . Highest Temperature . | . . . . Average Temperature . | . . . . Received Heat Transfer 87 | . . . 87 Siege Activations . | . . . . Martial Activations . | . . . . Shielding Activations . | . . . . Robots Disrupted . | . . . . Combat Hostiles . | . . . . Robots Corrupted . | . . . . Combat Hostiles . | . . . . Parts Fried . | . . . . Impact Corruptions . | . . . . Robots Melted . | . . . . Combat Hostiles . | . . . . Parts Melted . | . . . . Heat Transferred . | . . . . Parts Sabotaged . | . . . . Parts Stolen . | . . . . Parts Stripped . | . . . . Power Chain Reactions . | . . . . Alert | -11 -10 -10 -10 ------- Run | Yrd Mat Min Sub Maximum Alert Level . | . . . . Low Security (%) 100 | 100 100 100 . Level 1 . | . . . . Level 2 . | . . . . Level 3 . | . . . . Level 4 . | . . . . Level 5 . | . . . . High Security . | . . . . Max Security . | . . . . Peak Influence 82 | . . 82 . Initial . | . . . . Average 13 | . . 19 . Influence Increases 92 | . . 92 . Destroy 0b10 Robot/C 60 | . . 60 . Destroy Leader 10 | . . 10 . Destroy Structure 22 | . . 22 . Influence Decreases 92 | . . 92 . Time Decay 92 | . . 92 . Squads Dispatched . | . . . . Investigation . | . . . . Extermination . | . . . . Reinforcement . | . . . . Assault . | . . . . Garrison . | . . . . Intercept . | . . . . Searches Triggered . | . . . . Construction Impeded . | . . . . Haulers Reinforced . | . . . . Active Scanning Responses . | . . . . Cargo Convoy Interrupts . | . . . . Stealth | -11 -10 -10 -10 --------- Run | Yrd Mat Min Sub Distress Signals . | . . . . Communications Jammed . | . . . . Distress Signals . | . . . . Times Spotted 23 | . . 3 20 Peak Tracking Total 12 | . . 3 12 Tactical Retreats 1 | . . . 1 Traps | -11 -10 -10 -10 ------- Run | Yrd Mat Min Sub Traps Triggered . | . . . . Indirectly . | . . . . Trap Hack Attempts . | . . . . Triggered . | . . . . Disarmed . | . . . . Reprogrammed . | . . . . Reused . | . . . . Traps Extracted . | . . . . Installed . | . . . . Triggered . | . . . . Machines | -11 -10 -10 -10 ---------- Run | Yrd Mat Min Sub Machines Disabled . | . . . . Max in Single Turn . | . . . . Machines Repaired . | . . . . Machines Dismantled . | . . . . Machines Sabotaged . | . . . . Overloaded Fab Kills . | . . . . Hacking | -11 -10 -10 -10 --------- Run | Yrd Mat Min Sub Machines Accessed 1 | . . 1 . Terminals . | . . . . Fabricators . | . . . . Repair Stations . | . . . . Recycling Units . | . . . . Scanalyzers . | . . . . Garrison Access . | . . . . Total Hacks 1 | . . 1 . Successful 1 | . . 1 . Failed . | . . . . Catastrophic . | . . . . Database Lockouts . | . . . . Manual . | . . . . Terminals . | . . . . Fabricators . | . . . . Repair Stations . | . . . . Recycling Units . | . . . . Scanalyzers . | . . . . Garrison Access . | . . . . Terminal Hacks 1 | . . 1 . Open Door 1 | . . 1 . Fabricator Hacks . | . . . . Repair Station Hacks . | . . . . Recycling Unit Hacks . | . . . . Scanalyzer . | . . . . Garrison Access Hacks . | . . . . Unauthorized Hacks . | . . . . Terminals . | . . . . Fabricators . | . . . . Repair Stations . | . . . . Recycling Units . | . . . . Scanalyzers . | . . . . Garrison Access . | . . . . Data Cores Recovered . | . . . . Used . | . . . . Hacking Detections . | . . . . Full Trace Events . | . . . . Feedback Events . | . . . . Feedback Blocked . | . . . . Robot Schematics Acquired . | . . . . Robots Built . | . . . . Authchips . | . . . . Time . | . . . . Total Robot Build Rating . | . . . . Part Schematics Acquired . | . . . . Parts Built . | . . . . Authchips . | . . . . Time . | . . . . Total Part Build Rating . | . . . . Part Studies Acquired . | . . . . Parts Repaired . | . . . . Time . | . . . . Parts Recycled . | . . . . Recycled Matter . | . . . . Retrieved Matter . | . . . . Retrieved Components . | . . . . Parts Scanalyzed . | . . . . Part Schematics Acquired . | . . . . Parts Damaged . | . . . . Bothacking | -11 -10 -10 -10 ------------ Run | Yrd Mat Min Sub Used RIF Installer . | . . . . Robots Hacked . | . . . . Non-combat . | . . . . Combat . | . . . . Robot Hacks Applied . | . . . . Relay Couplers Released . | . . . . Fabnet Peak Effective % . | . . . . Robots Rewired . | . . . . Allies Hacked . | . . . . Hacks Repelled . | . . . . Allies | -11 -10 -10 -10 -------- Run | Yrd Mat Min Sub Total Allies . | . . . . Largest Group . | . . . . Highest-Rated Group . | . . . . Highest-Rated Ally . | . . . . Total Orders 4 | . . 1 3 EXPLORE 2 | . . . 2 RETURN 2 | . . 1 1 Ally Attacks . | . . . . Total Damage . | . . . . Kills . | . . . . Allies Corrupted . | . . . . Allies Melted . | . . . . Intel | -11 -10 -10 -10 ------- Run | Yrd Mat Min Sub Active Infowar (turns) . | . . . . Robot Analysis Total . | . . . . Derelict Logs Recovered 1 | . . 1 . Drone Launches 6 | . . 3 3 Drone Recoveries 4 | . . 3 1 Exploration | -11 -10 -10 -10 ------------- Run | Yrd Mat Min Sub Turns Passed 818 | 34 111 324 349 Spaces Moved 705 | 32 193 314 166 Core 687 | 14 193 314 166 Treads . | . . . . Legs 18 | 18 . . . Wheels . | . . . . Hover . | . . . . Flight . | . . . . Fastest Speed 50 | 50 50 50 50 Average Speed 57 | 89 50 50 75 Slowest Speed 300 | 120 50 50 300 Overloaded Moves . | . . . . Propulsion Burnouts . | . . . . Robots Hopped . | . . . . Potential Cave-ins . | . . . . Cave-ins Triggered . | . . . . Exploration Rate (%) 31 | 3 35 66 22 Regions Visited 3 Branch Regions 2 Pre-discovered Areas 1 | . . . 1 Known Exits Taken . | . . . . Unknown Exits Taken 3 | 1 1 1 . Scrap Searched 1 | . . 1 . Spaces Dug 16 | . . 16 . Terrain Destroyed 91 | . . 55 36 Melee . | . . . . Projectile . | . . . . AOE 91 | . . 55 36 Terrain Rammed . | . . . . Walls Destroyed . | . . . . Machines Disabled . | . . . . Actions | -11 -10 -10 -10 --------- Run | Yrd Mat Min Sub Total 1091 | 37 208 473 373 Wait 333 | . 11 142 180 Move 702 | 31 192 313 166 Hop . | . . . . Pick Up 8 | 3 2 3 . Fast Attach . | . . . . Attach 12 | 3 . 4 5 Detach 7 | . . 3 4 Swap . | . . . . Drop 3 | . 3 . . Fire 26 | . . 8 18 Melee . | . . . . Ram . | . . . . Kick . | . . . . Crush . | . . . . Escape Stasis . | . . . . Rewire . | . . . . Trap . | . . . . Miscellaneous . | . . . . Route ------- -11/Scrapyard -10/Materials -10/Mines (discovered 3 exits: [*Mat x2] / [*Sub]) -10/Subcaves (discovered 1 exit: *Mat) History --------- Turn | Location | Event 8 | -11/Scrapyard | Discovered new exit (range 15) 35 | -11/Scrapyard | Entered Materials 140 | -10/Materials | Discovered new exit (range 12) 146 | -10/Materials | Entered Mines 157 | -10/Mines | Discovered new exit (range 3) 302 | -10/Mines | Build established: Mutant 370 | -10/Mines | Discovered new exit (range 6) 388 | -10/Mines | Learned 4 Materials zone layouts 417 | -10/Mines | Found the Drone Emporium 439 | -10/Mines | Found Prototype Device 440 | -10/Mines | Identified Sensor Drone Bay 467 | -10/Mines | Discovered new exit (range 6) 470 | -10/Mines | Entered Subcaves 471 | -10/Subcaves | Approached by a straggling Scientist 490 | -10/Subcaves | Learned location of Zion (-6) 490 | -10/Subcaves | Met a Zionite searching for "candidates" 555 | -10/Subcaves | Discovered new exit (range 39) 559 | -10/Subcaves | Identified exit to Materials 718 | -10/Subcaves | Ambushed by Subdwellers from Twisted Machinery 728 | -10/Subcaves | Ambushed by swarm of Subdwellers 730 | -10/Subcaves | Ambushed by Subdwellers from Twisted Machinery 730 | -10/Subcaves | Ambushed by Subdwellers from Twisted Machinery 730 | -10/Subcaves | Ambushed by Subdwellers from Twisted Machinery 730 | -10/Subcaves | Ambushed by Subdweller buried in earth 730 | -10/Subcaves | Ambushed by Subdweller buried in earth 730 | -10/Subcaves | Ambushed by Subdwellers from Twisted Machinery 732 | -10/Subcaves | Core integrity fell below 50% 734 | -10/Subcaves | Core integrity fell below 20% 790 | -10/Subcaves | Lost 4 allies 819 | -10/Subcaves | Ambushed by Subdwellers from Twisted Machinery 819 | -10/Subcaves | Destroyed by 04-BMT(R) with Subdweller Laser Last Messages --------------- Shield. Subatomizers dissect the Disposable Heat Sink. 07-ALH(R) affixes Scrap Shield Fragment to Scrap Shield. BI-A3U(R) suffers critical hit (Burn). Tech Extrapolator violently self-destructs. 07-ALH(R) destroyed. Subatomizers dissect the Disposable Heat Sink. QT-ALB(R) affixes Scrap Shield Fragment to Scrap Shield. QT-ALB(R) destroyed. OO-UWV(g) destroyed. 4R-KCL(g) suffers critical hit (Destroy). FB-PNI(R) affixes Scrap Shield Fragment to Scrap Shield. Subatomizers dissect the Disposable Heat Sink. Sensor Drone released from Sensor Drone Bay. >> Lost connection to Sensor Drone. 04-BMT(R) emerges from the Twisted Machinery. Map ----- +----------------------------------------------------+ | ?????????????????????????????????????????????????? | | ?????????????????????????????????????????????????? | | ?????????????????????????????????????????????????? | | ?????????????????????????????????????????????????? | | ?????????????????????????????????????????????????? | | ?????????????????????????????????????????????????? | | ?????????????????????????????????????????????????? | | ?????????????????????????????????????????????????? | | ?????????????????????????????????????????????????? | | ?????????????????????????????????????????????????? | | ?????????????????????????????????????????????????? | | ???#########?????????????????###?????????????????? | | ???? ##???????????????# ##????????????????? | | ????? #???????##?????? #????????????????? | | ????? #??????## ###???? #?????##?????????? | | ?????? #?????## #???? ##???## ?????????# | | ?????# #?????# ##### #???# ????????## | | ????# ##????# ### #????# ##??????# | | ??# #????# #?# #?????## ##?????## | | ## ##????# #?# #?????### ##????## | | "#????## #??# #?????# ?????# | | "###### #### #?????? ####### | | ## ##" #?????????# ## ## | | ###?## """ ##??????????# | | ??????## #???###????## | | #????????# ### " @ #??## ##??## ## ## | | ?????????#####?#" "" #?## #?## ########? | | ???????????????#" """R ### ### #???????? | | ??????????????#"" " "R #???????? | | ??????????????#####" ## ##???????? | | ??????????????????##"#### ## #######????????? | | ???????????????????###??###########??????????????? | | ?????????????????????????????????????????????????? | | ?????????????????????????????????????????????????? | | ?????????????????????????????????????????????????? | | ?????????????????????????????????????????????????? | | ?????????????????????????????????????????????????? | | ?????????????????????????????????????????????????? | | ?????????????????????????????????????????????????? | | ?????????????????????????????????????????????????? | | ?????????????????????????????????????????????????? | | ?????????????????????????????????????????????????? | | ?????????????????????????????????????????????????? | | ?????????????????????????????????????????????????? | | ?????????????????????????????????????????????????? | | ?????????????????????????????????????????????????? | | ?????????????????????????????????????????????????? | | ?????????????????????????????????????????????????? | | ?????????????????????????????????????????????????? | | ?????????????????????????????????????????????????? | +----------------------------------------------------+ Best States ------------- Heat Dissipation 25 Energy Generation 10 Energy Capacity 250 Matter Stores 264 Matter Capacity 300 Sight Range 16 Terrain Scan Density 10 Evasion (%) 50 Item Schematics ----------------- None Robot Schematics ------------------ None Fabricated ------------ Nothing Repaired ---------- Nothing Studied --------- None Alien Tech Used ----------------- None Achievements -------------- None Challenges ------------ None Game ------ Seed NanofilamentsOvertunedAxe Manual? 0 Play Time 00:08:50 Cumulative 249.8 hours Start 2026.03.20 @ 14:13:01 End 2026.03.20 @ 14:20:38 Sessions 1 Manual Loads 0 Difficulty Rogue Special Mode None Game No. 679 Rogue 677 Adventurer 2 Explorer 0 Win Type - Total 0 Types 0/0/0/0/0/0/0/0/0/0 Lore% 66 Gallery% 62 Achievement% 42 Wizard Run 0 Options --------- Layout 1 ASCII 0 Keyboard 0 Movement Mouse Keybinds 0 Fullscreen 1 Font 24/Smallcaps Map View 50x35 Zoom Use 0% Tactical HUD 0 Map Filters NONE Filters NONE Steam 1 RUN: 8dd29c37-847e-4057-998f-f458b6b420b9